[Event "Titled Tuesday Blitz July 4 Early 2023"]
[White "Lenderman, Aleksandr"]
[Black "Radzhabov, Rodion"]
[WhiteFideId "2021285"]
[BlackFideId "884715"]
[WhiteElo "2922"]
[BlackElo "2674"]
[Result "1-0"]
[Round "3"]
[TimeControl "180+2"]
[Date "2023.07.04"]
[WhiteClock "0:00:45"]
[BlackClock "0:00:00"]
[Board "19"]

1. Nf3 {[%clk 0:02:26]}  d5 {[%clk 0:02:58]} 2. e3 {[%clk 0:02:26]}  Nf6 {[%clk 0:02:51]} 3. c4 {[%clk 0:02:26]}  e6 {[%clk 0:02:47]} 4. Nc3 {[%clk 0:02:26]}  c6 {[%clk 0:02:45]} 5. b3 {[%clk 0:02:25]}  Be7 {[%clk 0:02:42]} 6. Bb2 {[%clk 0:02:26]}  O-O {[%clk 0:02:42]} 7. d4 {[%clk 0:02:26]}  b6 {[%clk 0:02:19]} 8. Bd3 {[%clk 0:02:25]}  Bb7 {[%clk 0:02:19]} 9. O-O {[%clk 0:02:25]}  dxc4 {[%clk 0:01:46]} 10. bxc4 {[%clk 0:02:24]}  c5 {[%clk 0:01:46]} 11. Qe2 {[%clk 0:02:19]}  cxd4 {[%clk 0:01:43]} 12. exd4 {[%clk 0:02:19]}  Nc6 {[%clk 0:01:42]} 13. Rad1 {[%clk 0:02:18]}  Re8 {[%clk 0:01:23]} 14. Bb1 {[%clk 0:02:16]}  Bf8 {[%clk 0:01:22]} 15. Rfe1 {[%clk 0:02:13]}  Qc7 {[%clk 0:01:17]} 16. Ne5 {[%clk 0:02:10]}  Rad8 {[%clk 0:01:06]} 17. Nb5 {[%clk 0:01:57]}  Qb8 {[%clk 0:01:04]} 18. Qc2 {[%clk 0:01:51]}  Nb4 {[%clk 0:00:40]} 19. Qb3 {[%clk 0:01:46]}  a6 {[%clk 0:00:34]} 20. Nc3 {[%clk 0:01:40]}  Qa8 {[%clk 0:00:29]} 21. f3 {[%clk 0:01:34]}  Rc8 {[%clk 0:00:18]} 22. Na4 {[%clk 0:01:25]}  Qa7 {[%clk 0:00:17]} 23. a3 {[%clk 0:01:23]}  b5 {[%clk 0:00:09]} 24. axb4 {[%clk 0:01:23]}  bxa4 {[%clk 0:00:09]} 25. Qxa4 {[%clk 0:01:23]}  Red8 {[%clk 0:00:07]} 26. Bc3 {[%clk 0:01:21]}  h6 {[%clk 0:00:03]} 27. Qc2 {[%clk 0:01:18]}  Qa8 {[%clk 0:00:03]} 28. Ng4 {[%clk 0:01:15]}  Be7 {[%clk 0:00:01]} 29. Nxf6+ {[%clk 0:01:14]}  Bxf6 {[%clk 0:00:02]} 30. Qh7+ {[%clk 0:01:13]}  Kf8 {[%clk 0:00:03]} 31. c5 {[%clk 0:01:04]}  Bd5 {[%clk 0:00:03]} 32. Be4 {[%clk 0:01:03]}  Qc6 {[%clk 0:00:02]} 33. Bxd5 {[%clk 0:01:03]}  Rxd5 {[%clk 0:00:03]} 34. Qd3 {[%clk 0:01:02]}  Qb5 {[%clk 0:00:02]} 35. Qxb5 {[%clk 0:01:02]}  axb5 {[%clk 0:00:03]} 36. Rd2 {[%clk 0:00:57]}  Rcd8 {[%clk 0:00:03]} 37. Red1 {[%clk 0:00:57]}  Bg5 {[%clk 0:00:03]} 38. Rd3 {[%clk 0:00:57]}  e5 {[%clk 0:00:04]} 39. Kf2 {[%clk 0:00:54]}  Bf6 {[%clk 0:00:03]} 40. Ke3 {[%clk 0:00:53]}  exd4+ {[%clk 0:00:03]} 41. Bxd4 {[%clk 0:00:54]}  Re8+ {[%clk 0:00:03]} 42. Kf2 {[%clk 0:00:54]}  Red8 {[%clk 0:00:03]} 43. Ke3 {[%clk 0:00:44]}  Re8+ {[%clk 0:00:03]} 44. Kf4 {[%clk 0:00:44]}  Red8 {[%clk 0:00:03]} 45. Ke4 {[%clk 0:00:44]}  Re8+ {[%clk 0:00:00]} 46. Kxd5 {[%clk 0:00:45]} 1-0


[Site "https://www.chess.com"]

[Event "Titled Tuesday Blitz July 4 Early 2023"]
[White "Czopor, Maciej"]
[Black "Sanal, Vahap"]
[WhiteFideId "21805431"]
[BlackFideId "6300545"]
[WhiteElo "2673"]
[BlackElo "2919"]
[Result "1-0"]
[Round "3"]
[TimeControl "180+2"]
[Date "2023.07.04"]
[WhiteClock "0:00:02"]
[BlackClock "0:00:00"]
[Board "20"]

1. Nf3 {[%clk 0:02:54]}  d6 {[%clk 0:02:59]} 2. e4 {[%clk 0:02:53]}  Nf6 {[%clk 0:02:55]} 3. Nc3 {[%clk 0:02:51]}  e5 {[%clk 0:02:55]} 4. d4 {[%clk 0:02:49]}  Nbd7 {[%clk 0:02:55]} 5. Bc4 {[%clk 0:02:31]}  Be7 {[%clk 0:02:55]} 6. O-O {[%clk 0:02:28]}  O-O {[%clk 0:02:55]} 7. Re1 {[%clk 0:02:22]}  c6 {[%clk 0:02:54]} 8. Bf1 {[%clk 0:02:21]}  h6 {[%clk 0:02:54]} 9. h3 {[%clk 0:02:20]}  Re8 {[%clk 0:02:54]} 10. d5 {[%clk 0:02:15]}  Nb6 {[%clk 0:02:52]} 11. dxc6 {[%clk 0:02:13]}  bxc6 {[%clk 0:02:52]} 12. a4 {[%clk 0:02:13]}  a5 {[%clk 0:02:52]} 13. b3 {[%clk 0:02:13]}  Qc7 {[%clk 0:02:41]} 14. Ba3 {[%clk 0:02:09]}  Bb7 {[%clk 0:02:32]} 15. Qd2 {[%clk 0:02:03]}  Rad8 {[%clk 0:02:31]} 16. Rad1 {[%clk 0:02:02]}  Bf8 {[%clk 0:02:24]} 17. Nb1 {[%clk 0:01:34]}  Nc8 {[%clk 0:02:16]} 18. c4 {[%clk 0:01:33]}  d5 {[%clk 0:02:11]} 19. Bxf8 {[%clk 0:01:32]}  dxe4 {[%clk 0:02:09]} 20. Qc3 {[%clk 0:01:16]}  Rxd1 {[%clk 0:02:08]} 21. Rxd1 {[%clk 0:01:16]}  exf3 {[%clk 0:01:47]} 22. Bc5 {[%clk 0:01:09]}  Ne4 {[%clk 0:01:41]} 23. Qe3 {[%clk 0:01:06]}  Nxc5 {[%clk 0:01:41]} 24. Qxc5 {[%clk 0:01:07]}  e4 {[%clk 0:01:31]} 25. Nc3 {[%clk 0:01:00]}  Re5 {[%clk 0:01:28]} 26. Qe3 {[%clk 0:00:53]}  Ne7 {[%clk 0:01:18]} 27. c5 {[%clk 0:00:37]}  Nf5 {[%clk 0:01:11]} 28. Qf4 {[%clk 0:00:38]}  e3 {[%clk 0:00:54]} 29. Qxf3 {[%clk 0:00:29]}  Rxc5 {[%clk 0:00:50]} 30. Ne4 {[%clk 0:00:29]}  Re5 {[%clk 0:00:48]} 31. Qf4 {[%clk 0:00:20]}  c5 {[%clk 0:00:38]} 32. Ng3 {[%clk 0:00:20]}  exf2+ {[%clk 0:00:17]} 33. Qxf2 {[%clk 0:00:19]}  Nd4 {[%clk 0:00:16]} 34. Bc4 {[%clk 0:00:17]}  Bd5 {[%clk 0:00:14]} 35. Bxd5 {[%clk 0:00:16]}  Rxd5 {[%clk 0:00:15]} 36. Re1 {[%clk 0:00:16]}  Re5 {[%clk 0:00:15]} 37. Rf1 {[%clk 0:00:15]}  Rg5 {[%clk 0:00:10]} 38. Ne4 {[%clk 0:00:15]}  Rf5 {[%clk 0:00:11]} 39. Qe3 {[%clk 0:00:10]}  Rxf1+ {[%clk 0:00:09]} 40. Kxf1 {[%clk 0:00:11]}  Qe5 {[%clk 0:00:09]} 41. Kf2 {[%clk 0:00:11]}  Nxb3 {[%clk 0:00:07]} 42. Qxb3 {[%clk 0:00:06]}  Qxe4 {[%clk 0:00:07]} 43. Qb5 {[%clk 0:00:07]}  Qd4+ {[%clk 0:00:06]} 44. Kf3 {[%clk 0:00:07]}  Qc3+ {[%clk 0:00:05]} 45. Ke4 {[%clk 0:00:06]}  g6 {[%clk 0:00:04]} 46. Kd5 {[%clk 0:00:05]}  Qd4+ {[%clk 0:00:04]} 47. Kc6 {[%clk 0:00:06]}  c4 {[%clk 0:00:05]} 48. Qxa5 {[%clk 0:00:06]}  c3 {[%clk 0:00:05]} 49. Kb7 {[%clk 0:00:01]}  Kg7 {[%clk 0:00:04]} 50. Qc7 {[%clk 0:00:01]}  Qb4+ {[%clk 0:00:03]} 51. Kc8 {[%clk 0:00:01]}  Qxa4 {[%clk 0:00:01]} 52. Qxc3+ {[%clk 0:00:01]}  Kg8 {[%clk 0:00:00]} 53. Qf6 {[%clk 0:00:02]} 1-0


[Site "https://www.chess.com"]

[Event "Titled Tuesday Blitz July 4 Early 2023"]
[White "Koellner, Ruben Gideon"]
[Black "Ibarra Jerez, Jose Carlos"]
[WhiteFideId "12993093"]
[BlackFideId "2226332"]
[WhiteElo "2657"]
[BlackElo "2918"]
[Result "1-0"]
[Round "3"]
[TimeControl "180+2"]
[Date "2023.07.04"]
[WhiteClock "0:00:10"]
[BlackClock "0:00:01"]
[Board "22"]

1. d4 {[%clk 0:03:00]}  Nf6 {[%clk 0:02:59]} 2. Nf3 {[%clk 0:03:00]}  e6 {[%clk 0:02:59]} 3. Nbd2 {[%clk 0:02:57]}  d5 {[%clk 0:02:58]} 4. e3 {[%clk 0:02:58]}  b6 {[%clk 0:02:57]} 5. Bd3 {[%clk 0:02:57]}  Bb7 {[%clk 0:02:58]} 6. Ne5 {[%clk 0:02:58]}  Bd6 {[%clk 0:02:56]} 7. f4 {[%clk 0:02:58]}  O-O {[%clk 0:02:57]} 8. Qf3 {[%clk 0:02:58]}  c5 {[%clk 0:02:54]} 9. c3 {[%clk 0:02:58]}  Nc6 {[%clk 0:02:53]} 10. O-O {[%clk 0:02:57]}  Rc8 {[%clk 0:02:48]} 11. g4 {[%clk 0:02:56]}  Qc7 {[%clk 0:02:35]} 12. g5 {[%clk 0:02:54]}  Ne8 {[%clk 0:02:33]} 13. Bxh7+ {[%clk 0:02:47]}  Kxh7 {[%clk 0:02:30]} 14. Qh5+ {[%clk 0:02:47]}  Kg8 {[%clk 0:02:31]} 15. Rf3 {[%clk 0:02:48]}  g6 {[%clk 0:02:21]} 16. Qh6 {[%clk 0:02:42]}  Ng7 {[%clk 0:02:13]} 17. Rh3 {[%clk 0:02:41]}  Nh5 {[%clk 0:02:13]} 18. Ng4 {[%clk 0:02:07]}  f5 {[%clk 0:01:51]} 19. Qxg6+ {[%clk 0:02:01]}  Qg7 {[%clk 0:01:39]} 20. Qxe6+ {[%clk 0:01:40]}  Rf7 {[%clk 0:01:31]} 21. Nh6+ {[%clk 0:01:40]}  Kf8 {[%clk 0:01:30]} 22. Qxd6+ {[%clk 0:01:37]}  Re7 {[%clk 0:01:21]} 23. Rxh5 {[%clk 0:01:11]}  Rd8 {[%clk 0:01:15]} 24. Qf6+ {[%clk 0:01:05]}  Qxf6 {[%clk 0:01:13]} 25. gxf6 {[%clk 0:01:06]}  Rxe3 {[%clk 0:01:06]} 26. Nxf5 {[%clk 0:00:59]}  Re6 {[%clk 0:00:47]} 27. Nf3 {[%clk 0:00:39]}  Rxf6 {[%clk 0:00:44]} 28. Ne5 {[%clk 0:00:38]}  Nxe5 {[%clk 0:00:34]} 29. fxe5 {[%clk 0:00:38]}  Rg6+ {[%clk 0:00:34]} 30. Bg5 {[%clk 0:00:25]}  Rd7 {[%clk 0:00:30]} 31. Rf1 {[%clk 0:00:24]}  Ba6 {[%clk 0:00:26]} 32. Rf2 {[%clk 0:00:18]}  Kg8 {[%clk 0:00:15]} 33. Rg2 {[%clk 0:00:13]}  Kf7 {[%clk 0:00:09]} 34. Rh7+ {[%clk 0:00:11]}  Ke6 {[%clk 0:00:10]} 35. Rxd7 {[%clk 0:00:12]}  Kxd7 {[%clk 0:00:09]} 36. h4 {[%clk 0:00:12]}  Bd3 {[%clk 0:00:09]} 37. Ne3 {[%clk 0:00:11]}  Be4 {[%clk 0:00:10]} 38. Rf2 {[%clk 0:00:12]}  cxd4 {[%clk 0:00:09]} 39. cxd4 {[%clk 0:00:12]}  Rc6 {[%clk 0:00:10]} 40. Kh2 {[%clk 0:00:12]}  Rc1 {[%clk 0:00:10]} 41. Ng2 {[%clk 0:00:10]}  Ke6 {[%clk 0:00:01]} 42. Bxc1 {[%clk 0:00:10]} 1-0


[Site "https://www.chess.com"]

[Event "Titled Tuesday Blitz July 4 Early 2023"]
[White "Durarbayli, Vasif"]
[Black "Guerra Tulcan, Lenin"]
[WhiteFideId "13402935"]
[BlackFideId "3601382"]
[WhiteElo "2916"]
[BlackElo "2652"]
[Result "1-0"]
[Round "3"]
[TimeControl "180+2"]
[Date "2023.07.04"]
[WhiteClock "0:00:17"]
[BlackClock "0:00:07"]
[Board "23"]

1. e4 {[%clk 0:03:00]}  c5 {[%clk 0:02:59]} 2. Nf3 {[%clk 0:03:00]}  e6 {[%clk 0:03:00]} 3. d4 {[%clk 0:03:00]}  cxd4 {[%clk 0:03:00]} 4. Nxd4 {[%clk 0:03:01]}  Nc6 {[%clk 0:03:00]} 5. Nc3 {[%clk 0:03:01]}  Qc7 {[%clk 0:03:00]} 6. Be3 {[%clk 0:03:01]}  a6 {[%clk 0:03:00]} 7. Qf3 {[%clk 0:03:01]}  Nxd4 {[%clk 0:03:00]} 8. Bxd4 {[%clk 0:03:01]}  Ne7 {[%clk 0:03:01]} 9. Qg3 {[%clk 0:02:57]}  Qxg3 {[%clk 0:03:01]} 10. hxg3 {[%clk 0:02:58]}  b5 {[%clk 0:03:01]} 11. Bd3 {[%clk 0:02:37]}  Bb7 {[%clk 0:03:00]} 12. a4 {[%clk 0:02:36]}  b4 {[%clk 0:03:00]} 13. Ne2 {[%clk 0:02:18]}  d5 {[%clk 0:02:57]} 14. e5 {[%clk 0:02:15]}  g6 {[%clk 0:02:56]} 15. Bc5 {[%clk 0:01:58]}  Nc6 {[%clk 0:02:52]} 16. Bxf8 {[%clk 0:01:59]}  Kxf8 {[%clk 0:02:53]} 17. f4 {[%clk 0:01:59]}  Kg7 {[%clk 0:02:46]} 18. Kd2 {[%clk 0:01:54]}  h6 {[%clk 0:02:37]} 19. a5 {[%clk 0:01:52]}  Rab8 {[%clk 0:02:27]} 20. Ra4 {[%clk 0:01:48]}  Rhc8 {[%clk 0:02:19]} 21. Ke3 {[%clk 0:01:44]}  d4+ {[%clk 0:02:09]} 22. Kf2 {[%clk 0:01:39]}  Rd8 {[%clk 0:02:05]} 23. b3 {[%clk 0:01:32]}  Rd5 {[%clk 0:01:59]} 24. Rha1 {[%clk 0:01:28]}  Rc5 {[%clk 0:01:52]} 25. Bc4 {[%clk 0:01:27]}  g5 {[%clk 0:01:43]} 26. Nc1 {[%clk 0:01:27]}  Bc8 {[%clk 0:01:09]} 27. Nd3 {[%clk 0:01:17]}  Rxc4 {[%clk 0:01:09]} 28. bxc4 {[%clk 0:01:18]}  Bd7 {[%clk 0:01:10]} 29. Nc5 {[%clk 0:01:11]}  Bc8 {[%clk 0:01:09]} 30. Rd1 {[%clk 0:01:09]}  g4 {[%clk 0:00:59]} 31. Raa1 {[%clk 0:01:07]}  Bb7 {[%clk 0:00:46]} 32. Ra4 {[%clk 0:00:56]}  Bc8 {[%clk 0:00:43]} 33. Rd2 {[%clk 0:00:54]}  Kg6 {[%clk 0:00:41]} 34. Nb3 {[%clk 0:00:54]}  Bd7 {[%clk 0:00:39]} 35. Ra1 {[%clk 0:00:54]}  Be8 {[%clk 0:00:36]} 36. Nxd4 {[%clk 0:00:51]}  Ne7 {[%clk 0:00:31]} 37. Rb1 {[%clk 0:00:48]}  h5 {[%clk 0:00:29]} 38. Rdd1 {[%clk 0:00:44]}  Bc6 {[%clk 0:00:29]} 39. c3 {[%clk 0:00:43]}  b3 {[%clk 0:00:25]} 40. Rxb3 {[%clk 0:00:39]}  Rc8 {[%clk 0:00:26]} 41. Rb6 {[%clk 0:00:34]}  Be4 {[%clk 0:00:25]} 42. Rxa6 {[%clk 0:00:25]}  Rxc4 {[%clk 0:00:25]} 43. Nxe6 {[%clk 0:00:25]}  Bb7 {[%clk 0:00:16]} 44. Rb6 {[%clk 0:00:23]}  Rxc3 {[%clk 0:00:13]} 45. Nd4+ {[%clk 0:00:19]}  Bc6 {[%clk 0:00:10]} 46. Nxc6 {[%clk 0:00:19]}  Rc2+ {[%clk 0:00:10]} 47. Kg1 {[%clk 0:00:19]}  Nd5 {[%clk 0:00:07]} 48. Rxd5 {[%clk 0:00:17]} 1-0


[Site "https://www.chess.com"]

[Event "Titled Tuesday Blitz July 4 Early 2023"]
[White "Tan, Jun Ying"]
[Black "Vokhidov, Shamsiddin"]
[WhiteFideId "5710413"]
[BlackFideId "14204223"]
[WhiteElo "2652"]
[BlackElo "2914"]
[Result "0-1"]
[Round "3"]
[TimeControl "180+2"]
[Date "2023.07.04"]
[WhiteClock "0:00:00"]
[BlackClock "0:02:06"]
[Board "24"]

1. d4 {[%clk 0:03:00]}  Nf6 {[%clk 0:03:00]} 2. c4 {[%clk 0:03:01]}  e6 {[%clk 0:03:01]} 3. Nc3 {[%clk 0:03:02]}  Bb4 {[%clk 0:03:02]} 4. e3 {[%clk 0:03:03]}  O-O {[%clk 0:03:02]} 5. Ne2 {[%clk 0:03:03]}  d5 {[%clk 0:03:03]} 6. a3 {[%clk 0:03:04]}  Be7 {[%clk 0:03:03]} 7. cxd5 {[%clk 0:03:04]}  exd5 {[%clk 0:03:04]} 8. Nf4 {[%clk 0:03:05]}  c6 {[%clk 0:03:03]} 9. Bd3 {[%clk 0:03:06]}  Bd6 {[%clk 0:03:02]} 10. O-O {[%clk 0:03:06]}  Re8 {[%clk 0:03:02]} 11. f3 {[%clk 0:03:06]}  c5 {[%clk 0:03:01]} 12. Nce2 {[%clk 0:02:49]}  Nc6 {[%clk 0:03:00]} 13. Bc2 {[%clk 0:02:35]}  h6 {[%clk 0:02:51]} 14. dxc5 {[%clk 0:02:05]}  Bxc5 {[%clk 0:02:51]} 15. Nd4 {[%clk 0:02:06]}  Qb6 {[%clk 0:02:49]} 16. Nfe2 {[%clk 0:02:06]}  a5 {[%clk 0:02:48]} 17. Kh1 {[%clk 0:02:03]}  Bd7 {[%clk 0:02:43]} 18. Rb1 {[%clk 0:01:54]}  Rac8 {[%clk 0:02:41]} 19. Bd2 {[%clk 0:01:45]}  Nxd4 {[%clk 0:02:40]} 20. exd4 {[%clk 0:01:35]}  Bd6 {[%clk 0:02:40]} 21. Bd3 {[%clk 0:01:27]}  a4 {[%clk 0:02:36]} 22. Bc3 {[%clk 0:01:21]}  Bb5 {[%clk 0:02:35]} 23. Ng3 {[%clk 0:01:13]}  Bxg3 {[%clk 0:02:31]} 24. hxg3 {[%clk 0:01:13]}  Nh5 {[%clk 0:02:32]} 25. Kh2 {[%clk 0:00:55]}  Bxd3 {[%clk 0:02:17]} 26. Qxd3 {[%clk 0:00:56]}  Qd6 {[%clk 0:02:18]} 27. f4 {[%clk 0:00:49]}  Nf6 {[%clk 0:02:17]} 28. Bb4 {[%clk 0:00:48]}  Qd7 {[%clk 0:02:15]} 29. Rbc1 {[%clk 0:00:47]}  Re3 {[%clk 0:02:11]} 30. Rxc8+ {[%clk 0:00:41]}  Qxc8 {[%clk 0:02:12]} 31. Qd2 {[%clk 0:00:36]}  Ng4+ {[%clk 0:02:12]} 32. Kg1 {[%clk 0:00:34]}  Rxg3 {[%clk 0:02:11]} 33. f5 {[%clk 0:00:10]}  Ne3 {[%clk 0:02:07]} 34. Rc1 {[%clk 0:00:00]}  Qxf5 {[%clk 0:02:06]} 0-1


[Site "https://www.chess.com"]

[Event "Titled Tuesday Blitz July 4 Early 2023"]
[White "Dardha, Daniel"]
[Black "Akhmetov, Ayan"]
[WhiteFideId "240990"]
[BlackFideId "13703706"]
[WhiteElo "2913"]
[BlackElo "2651"]
[Result "1-0"]
[Round "3"]
[TimeControl "180+2"]
[Date "2023.07.04"]
[WhiteClock "0:02:27"]
[BlackClock "0:00:22"]
[Board "25"]

1. d4 {[%clk 0:02:59]}  e6 {[%clk 0:02:59]} 2. e4 {[%clk 0:02:57]}  d5 {[%clk 0:02:58]} 3. Nc3 {[%clk 0:02:57]}  Bb4 {[%clk 0:02:58]} 4. e5 {[%clk 0:02:58]}  c5 {[%clk 0:02:58]} 5. a3 {[%clk 0:02:58]}  Bxc3+ {[%clk 0:02:59]} 6. bxc3 {[%clk 0:02:59]}  Nc6 {[%clk 0:03:00]} 7. Qg4 {[%clk 0:02:58]}  g6 {[%clk 0:02:59]} 8. h4 {[%clk 0:02:57]}  h6 {[%clk 0:03:00]} 9. Nf3 {[%clk 0:02:56]}  Qa5 {[%clk 0:02:58]} 10. Bd2 {[%clk 0:02:56]}  c4 {[%clk 0:02:59]} 11. Qf4 {[%clk 0:02:55]}  Bd7 {[%clk 0:02:58]} 12. Be2 {[%clk 0:02:53]}  Rh7 {[%clk 0:02:58]} 13. Nh2 {[%clk 0:02:54]}  O-O-O {[%clk 0:02:54]} 14. Ng4 {[%clk 0:02:54]}  Re8 {[%clk 0:02:43]} 15. Qg3 {[%clk 0:02:51]}  Qd8 {[%clk 0:01:49]} 16. h5 {[%clk 0:02:47]}  g5 {[%clk 0:01:47]} 17. f4 {[%clk 0:02:47]}  f5 {[%clk 0:00:54]} 18. exf6 {[%clk 0:02:43]}  gxf4 {[%clk 0:00:33]} 19. Qxf4 {[%clk 0:02:43]}  Rf8 {[%clk 0:00:33]} 20. O-O {[%clk 0:02:40]}  Nxf6 {[%clk 0:00:32]} 21. Nxf6 {[%clk 0:02:37]}  Rhf7 {[%clk 0:00:32]} 22. Qxh6 {[%clk 0:02:27]}  Rxf6 {[%clk 0:00:30]} 23. Rxf6 {[%clk 0:02:27]}  Rxf6 {[%clk 0:00:22]} 24. Qg7 {[%clk 0:02:27]} 1-0


[Site "https://www.chess.com"]

[Event "Titled Tuesday Blitz July 4 Early 2023"]
[White "Vaibhav Jayant Raut"]
[Black "Erdogmus, Yagiz Kaan"]
[WhiteFideId "5089034"]
[BlackFideId "44599790"]
[WhiteElo "2645"]
[BlackElo "2902"]
[Result "0-1"]
[Round "3"]
[TimeControl "180+2"]
[Date "2023.07.04"]
[WhiteClock "0:00:02"]
[BlackClock "0:00:04"]
[Board "27"]

1. e4 {[%clk 0:03:00]}  c5 {[%clk 0:02:57]} 2. Nf3 {[%clk 0:02:59]}  d6 {[%clk 0:02:58]} 3. d4 {[%clk 0:02:59]}  cxd4 {[%clk 0:02:58]} 4. Qxd4 {[%clk 0:03:00]}  Nc6 {[%clk 0:02:56]} 5. Bb5 {[%clk 0:03:00]}  Bd7 {[%clk 0:02:56]} 6. Bxc6 {[%clk 0:02:59]}  Bxc6 {[%clk 0:02:57]} 7. Nc3 {[%clk 0:03:00]}  Nf6 {[%clk 0:02:55]} 8. Bg5 {[%clk 0:03:00]}  e6 {[%clk 0:02:55]} 9. O-O-O {[%clk 0:02:59]}  Be7 {[%clk 0:02:54]} 10. Rhe1 {[%clk 0:02:59]}  Qa5 {[%clk 0:02:49]} 11. Kb1 {[%clk 0:02:58]}  O-O {[%clk 0:02:44]} 12. Bh4 {[%clk 0:02:42]}  Rfd8 {[%clk 0:02:25]} 13. Nd2 {[%clk 0:02:25]}  b5 {[%clk 0:02:21]} 14. Nb3 {[%clk 0:02:18]}  Qc7 {[%clk 0:02:21]} 15. Bg3 {[%clk 0:02:17]}  e5 {[%clk 0:02:18]} 16. Qe3 {[%clk 0:02:09]}  Rac8 {[%clk 0:02:02]} 17. Re2 {[%clk 0:01:58]}  b4 {[%clk 0:01:54]} 18. Nd5 {[%clk 0:01:56]}  Nxd5 {[%clk 0:01:53]} 19. exd5 {[%clk 0:01:57]}  Bb5 {[%clk 0:01:54]} 20. Red2 {[%clk 0:01:53]}  a5 {[%clk 0:01:51]} 21. f4 {[%clk 0:01:48]}  a4 {[%clk 0:01:43]} 22. Nc1 {[%clk 0:01:44]}  exf4 {[%clk 0:01:43]} 23. Bxf4 {[%clk 0:01:29]}  Bf6 {[%clk 0:01:42]} 24. Bg5 {[%clk 0:01:25]}  Re8 {[%clk 0:01:41]} 25. Qg3 {[%clk 0:01:22]}  Bxg5 {[%clk 0:00:59]} 26. Qxg5 {[%clk 0:01:23]}  a3 {[%clk 0:00:59]} 27. bxa3 {[%clk 0:00:54]}  bxa3 {[%clk 0:00:58]} 28. Qg3 {[%clk 0:00:53]}  Qb6 {[%clk 0:00:49]} 29. Nb3 {[%clk 0:00:50]}  Bc4 {[%clk 0:00:42]} 30. Re1 {[%clk 0:00:41]}  Qb4 {[%clk 0:00:42]} 31. Rdd1 {[%clk 0:00:30]}  Bxd5 {[%clk 0:00:30]} 32. Rxe8+ {[%clk 0:00:16]}  Rxe8 {[%clk 0:00:31]} 33. Qd3 {[%clk 0:00:16]}  Bxg2 {[%clk 0:00:22]} 34. Qxd6 {[%clk 0:00:16]}  Qxd6 {[%clk 0:00:17]} 35. Rxd6 {[%clk 0:00:16]}  Re1+ {[%clk 0:00:17]} 36. Nc1 {[%clk 0:00:17]}  h5 {[%clk 0:00:17]} 37. Rd3 {[%clk 0:00:14]}  Rh1 {[%clk 0:00:16]} 38. Rxa3 {[%clk 0:00:11]}  Rxh2 {[%clk 0:00:17]} 39. Rc3 {[%clk 0:00:08]}  h4 {[%clk 0:00:16]} 40. Ne2 {[%clk 0:00:08]}  Be4 {[%clk 0:00:13]} 41. Nf4 {[%clk 0:00:07]}  g5 {[%clk 0:00:06]} 42. Nh5 {[%clk 0:00:06]}  Bg6 {[%clk 0:00:06]} 43. Nf6+ {[%clk 0:00:06]}  Kg7 {[%clk 0:00:06]} 44. Ng4 {[%clk 0:00:07]}  Rg2 {[%clk 0:00:06]} 45. Ne5 {[%clk 0:00:06]}  Bf5 {[%clk 0:00:06]} 46. a4 {[%clk 0:00:07]}  h3 {[%clk 0:00:06]} 47. Nf3 {[%clk 0:00:05]}  g4 {[%clk 0:00:06]} 48. Nh4 {[%clk 0:00:05]}  Be4 {[%clk 0:00:05]} 49. Nxg2 {[%clk 0:00:03]}  h2 {[%clk 0:00:05]} 50. Ne3 {[%clk 0:00:02]}  h1=Q+ {[%clk 0:00:05]} 51. Kb2 {[%clk 0:00:03]}  g3 {[%clk 0:00:05]} 52. Nc4 {[%clk 0:00:03]}  g2 {[%clk 0:00:04]} 53. Rg3+ {[%clk 0:00:03]}  Kf8 {[%clk 0:00:05]} 54. Nd6 {[%clk 0:00:02]}  Bd5 {[%clk 0:00:05]} 55. Nf5 {[%clk 0:00:02]}  g1=Q {[%clk 0:00:05]} 56. Rc3 {[%clk 0:00:02]}  Qa1# {[%clk 0:00:04]} 0-1


[Site "https://www.chess.com"]

[Event "Titled Tuesday Blitz July 4 Early 2023"]
[White "Nguyen, Ngoc Truong Son"]
[Black "Materia, Marco"]
[WhiteFideId "12401110"]
[BlackFideId "45150451"]
[WhiteElo "2900"]
[BlackElo "2617"]
[Result "1-0"]
[Round "3"]
[TimeControl "180+2"]
[Date "2023.07.04"]
[WhiteClock "0:00:28"]
[BlackClock "0:00:10"]
[Board "28"]

1. e4 {[%clk 0:03:00]}  c5 {[%clk 0:02:59]} 2. Nf3 {[%clk 0:03:00]}  e6 {[%clk 0:03:00]} 3. g3 {[%clk 0:02:57]}  Nc6 {[%clk 0:02:58]} 4. Bg2 {[%clk 0:02:57]}  Nf6 {[%clk 0:02:57]} 5. Qe2 {[%clk 0:02:57]}  d5 {[%clk 0:02:56]} 6. d3 {[%clk 0:02:55]}  Be7 {[%clk 0:02:53]} 7. O-O {[%clk 0:02:53]}  O-O {[%clk 0:02:43]} 8. Nbd2 {[%clk 0:02:43]}  b5 {[%clk 0:02:41]} 9. e5 {[%clk 0:02:40]}  Nd7 {[%clk 0:02:40]} 10. Re1 {[%clk 0:02:40]}  a5 {[%clk 0:02:40]} 11. Nf1 {[%clk 0:02:40]}  a4 {[%clk 0:02:38]} 12. a3 {[%clk 0:02:39]}  b4 {[%clk 0:02:27]} 13. h4 {[%clk 0:02:39]}  bxa3 {[%clk 0:02:27]} 14. bxa3 {[%clk 0:02:39]}  Ba6 {[%clk 0:02:22]} 15. Bf4 {[%clk 0:02:37]}  Qa5 {[%clk 0:02:21]} 16. h5 {[%clk 0:02:29]}  h6 {[%clk 0:02:19]} 17. N1h2 {[%clk 0:02:05]}  Rfb8 {[%clk 0:02:16]} 18. Ng4 {[%clk 0:01:59]}  Qd8 {[%clk 0:02:16]} 19. Qd2 {[%clk 0:01:54]}  Bf8 {[%clk 0:02:07]} 20. Bxh6 {[%clk 0:01:13]}  gxh6 {[%clk 0:02:06]} 21. Nxh6+ {[%clk 0:01:14]}  Bxh6 {[%clk 0:02:06]} 22. Qxh6 {[%clk 0:01:15]}  Qf8 {[%clk 0:02:05]} 23. Qf4 {[%clk 0:01:15]}  Rb2 {[%clk 0:01:44]} 24. c4 {[%clk 0:01:08]}  dxc4 {[%clk 0:01:39]} 25. dxc4 {[%clk 0:01:08]}  Rd8 {[%clk 0:01:37]} 26. Rad1 {[%clk 0:01:01]}  Nb6 {[%clk 0:01:32]} 27. Qg5+ {[%clk 0:00:55]}  Kh7 {[%clk 0:01:30]} 28. Qf6 {[%clk 0:00:50]}  Rxd1 {[%clk 0:01:23]} 29. Rxd1 {[%clk 0:00:35]}  Qg7 {[%clk 0:00:17]} 30. Ng5+ {[%clk 0:00:36]}  Kg8 {[%clk 0:00:16]} 31. Bxc6 {[%clk 0:00:35]}  Nd5 {[%clk 0:00:13]} 32. cxd5 {[%clk 0:00:34]}  Be2 {[%clk 0:00:13]} 33. Re1 {[%clk 0:00:30]}  Qxf6 {[%clk 0:00:12]} 34. exf6 {[%clk 0:00:30]}  c4 {[%clk 0:00:12]} 35. dxe6 {[%clk 0:00:29]}  c3 {[%clk 0:00:10]} 36. e7 {[%clk 0:00:28]} 1-0


[Site "https://www.chess.com"]